[Event "31st MPL National U18 Chess-ch 2022"]
[Site "Pollachi"]
[Date "2022.04.20"]
[Round "6.1"]
[White "Soham Kamotra"]
[Black "Bharath Subramaniyam H"]
[Result "1/2-1/2"]
[ECO "A25"]
[WhiteElo "2229"]
[BlackElo "2508"]
[Annotator "TA"]
[PlyCount "91"]
[EventDate "2022.04.18"]
[EventCountry "IND"]
[SourceTitle "playchess.com"]
[Source "ChessBase"]
[SourceQuality "1"]
[TimeControl "5400+30"]

{[%evp 16,91,38,31,36,33,50,37,31,6,22,-16,-7,-16,0,-20,5,-18,-18,-24,-22,-16,-11,-11,-14,-72,-71,-63,-65,-86,-77,-106,-111,-155,-122,-172,-162,-167,-129,-294,-284,-244,-226,-168,-171,-252,-157,-301,-235,-263,-227,-231,-227,-227,-227,-237,-100,-123,-123,-108,-114,-103,-86,-97,-115,-91,-83,-89,0,-151,-139,-185,-150,-138,0,0,-30,-16]} 1. c4 {[%emt 0:00:04]} e5 {[%emt 0:00:08]} 2. g3 {[%emt 0:00:06]} Nc6 {[%emt 0:00:07]} 3. Nc3 {[%emt 0:00:06]} f5 {[%emt 0:00:30]} 4. Bg2 {[%emt 0:00:06]} Nf6 {[%emt 0:00:08]} 5. d3 {[%emt 0:00:11]} Bb4 {[%emt 0:01:12]} 6. Bd2 {[%emt 0:00:08]} O-O {[%emt 0:02:49]} 7. Nf3 {[%emt 0:00:04]} d6 {[%emt 0:02:45]} 8. O-O {[%emt 0:00:09]} Bxc3 {[%emt 0:03:22]} 9. Bxc3 {[%emt 0:00:07]} Qe8 {[%emt 0:00:57] A25: English Opening vs King's Indian with ...Nc6 but without early d3.} 10. e3 {[%emt 0:00:15]} a5 {[%emt 0:15:23]} 11. Nd2 {[%emt 0:06:06]} Bd7 {[%emt 0:12:38] [#] White is slightly better.} 12. b3 $146 {[%emt 0:21:23]} ({Predecessor:} 12. Re1 Qf7 13. Qb3 b6 14. f4 Rae8 15. a3 Nd8 16. Qc2 Bc6 17. Bxc6 Nxc6 18. b4 {½-½ (39) Muehlhausen,T-Gappel,H freechess.de 2020}) 12... Qg6 {[%emt 0:01:03]} 13. d4 {[%emt 0:11:27]} e4 {[%emt 0:12:25]} 14. a3 {[%emt 0:02:08]} d5 {[%emt 0:06:37]} 15. Qe2 {[%emt 0:07:55]} Be6 {[%emt 0:06:03]} 16. c5 {[%emt 0:07:36]} Bd7 {[%emt 0:04:30]} 17. Rfb1 {[%emt 0:02:08]} Qe8 {[%emt 0:09:27]} 18. b4 {[%emt 0:03:28]} axb4 {[%emt 0:00:37]} 19. axb4 {[%emt 0:00:08]} Na7 {[%emt 0:00:11]} 20. Bf1 {[%emt 0:03:25]} (20. Qe1 $11 {remains equal.}) 20... Bb5 $1 $17 {[%emt 0:03:45]} 21. Qe1 {[%emt 0:01:54]} c6 {[%emt 0:02:18]} 22. Ra5 {[%emt 0:03:07] Threatens to win with Rba1.} Bxf1 {[%emt 0:00:10]} 23. Nxf1 {[%emt 0:00:14]} Nb5 {[%emt 0:00:09]} 24. Rba1 {[%emt 0:00:06]} Rc8 {[%emt 0:05:22]} 25. Bb2 {[%emt 0:03:53]} (25. Bd2 $17 {is a better defense.}) 25... g5 $19 {[%emt 0:01:33][%cal Of5f4]} 26. Qe2 {[%emt 0:00:36]} f4 {[%emt 0:01:01][%cal Bf5f4,Bf4f3][%mdl 32]} 27. Nd2 {[%emt 0:00:14]} (27. gxf4 $17 gxf4 28. exf4) 27... f3 {[%emt 0:03:50]} 28. Qf1 {[%emt 0:02:29]} Qd7 {[%emt 0:00:16]} 29. h3 {[%emt 0:00:44]} Ne8 {[%emt 0:01:56][%cal Bf6e8,Be8c7,Bc7a6][%mdl 32]} 30. Kh2 {[%emt 0:04:43]} (30. Ra8 {was the only chance.}) 30... Nec7 {[%emt 0:00:08]} 31. g4 {[%emt 0:01:40]} (31. Nb1 $17) 31... Na6 {[%emt 0:01:37]} 32. R5a4 {[%emt 0:01:08]} Qc7+ {[%emt 0:00:06]} 33. Kh1 {[%emt 0:00:07]} Rf6 {[%emt 0:00:44] White must now prevent ...Rh6.} 34. Qg1 {[%emt 0:00:04]} Rh6 {[%emt 0:00:21]} 35. Qh2 {[%emt 0:00:04]} Qd7 {[%emt 0:00:15]} (35... Rh4 $19 {and Black stays clearly on top. Strongly threatening ...h5.} 36. Rg1 h5 37. gxh5 Rxh5 38. Qxc7 Naxc7) 36. Nf1 $17 {[%emt 0:00:20]} Rf8 {[%emt 0:01:13]} 37. Ng3 {[%emt 0:00:07] [#]} Nbc7 $1 {[%emt 0:01:43]} 38. Rg1 {[%emt 0:01:00]} ({Much weaker is} 38. Nf5 $6 Rxf5 39. gxf5 Qxf5 $11) 38... Ne8 {[%emt 0:00:45] ...Ng7 is the strong threat.} 39. Nf5 {[%emt 0:01:28]} Rxf5 {[%emt 0:01:13]} 40. gxf5 {[%emt 0:00:07]} Qxf5 {[%emt 0:00:01]} 41. Rg3 {[%emt 0:04:04][%cal Ob4b5]} Nf6 {[%emt 0:00:22]} (41... Rh5 $17) 42. Bc3 $2 {[%emt 0:01:38] [#]} (42. b5 $1 $11 cxb5 43. Ra5) 42... Kf7 $1 {[%emt 0:00:28][%mdl 1024] Black has strong compensation.} 43. Ra1 {[%emt 0:00:06]} (43. Kg1 $17) 43... Qd7 {[%emt 0:00:44]} 44. Kg1 {[%emt 0:02:01][%cal Ob4b5,Bh1g1,Bg1f1,Bf1e1][%mdl 32]} ({But not} 44. Rxg5 $2 Rxh3 45. Rag1 Kf8 $19) 44... Rh5 {[%emt 0:00:17]} (44... g4 $17 45. Kf1 gxh3) 45. Kf1 $1 $11 {[%emt 0:00:35]} Nc7 {[%emt 0:00:26]} 46. Ke1 $1 {[%emt 0:00:08] Weighted Error Value: White=0.24 (precise) /Black=0.20 (precise)} 1/2-1/2

[Event "31st MPL National U18 Chess-ch 2022"]
[Site "Pollachi"]
[Date "2022.04.20"]
[Round "6.2"]
[White "Srihari L R"]
[Black "John Veny Akkarakaran"]
[Result "1/2-1/2"]
[ECO "A13"]
[WhiteElo "2400"]
[BlackElo "1687"]
[Annotator "TA"]
[PlyCount "96"]
[EventDate "2022.04.18"]
[EventCountry "IND"]
[SourceTitle "playchess.com"]
[Source "ChessBase"]
[SourceQuality "1"]
[TimeControl "5400+30"]

{[%evp 9,96,6,0,5,14,10,20,18,29,13,25,27,33,14,29,15,39,38,26,27,35,23,36,26,33,30,40,33,45,41,41,41,41,41,68,32,37,18,27,22,44,48,35,29,43,14,43,0,0,0,0,0,0,-11,-8,-4,0,0,0,0,0,0,42,0,0,0,0,-136,-147,-133,2,28,108,94,97,100,364,123,129,134,119,127,106,-100,-93,-92,-99,-83,42]} 1. Nf3 {[%emt 0:00:30]} Nf6 {[%emt 0:00:08]} 2. c4 {[%emt 0:00:00]} e6 {[%emt 0:00:07]} 3. b3 {[%emt 0:00:02]} d5 {[%emt 0:01:11]} 4. Bb2 {[%emt 0:03:14]} b6 {[%emt 0:04:36]} 5. g3 {[%emt 0:01:15]} Bb7 {[%emt 0:02:30]} 6. Bg2 {[%emt 0:00:29] A13: English Opening: 1...e6.} Bd6 {[%emt 0:02:06]} 7. O-O {[%emt 0:01:06]} O-O {[%emt 0:06:40]} 8. Nc3 {[%emt 0:02:07] The position is equal.} c5 {[%emt 0:04:48] 8...Nbd7 is a critical line.} 9. e3 {[%emt 0:00:57] Prevents d4.} Nbd7 {[%emt 0:01:53]} 10. Qe2 {[%emt 0:01:33]} Rc8 {[%emt 0:02:54]} 11. Rfd1 {[%emt 0:01:28]} Qe7 {[%emt 1:09:07]} 12. cxd5 {[#]} exd5 $146 ({Predecessor:} 12... Nxd5 13. Nxd5 exd5 14. Rac1 Rfe8 15. d4 c4 16. Nh4 Nf6 17. Nf5 Qd8 18. Nxd6 Qxd6 19. bxc4 {0-1 (43) Debeaune,R (2150)-Rigolot,M (2153) Besancon 2006}) 13. d4 Rfd8 14. Rac1 h6 15. dxc5 bxc5 16. Nh4 {[%cal Rc3d5]} Qe6 17. Qc2 Bf8 18. Qf5 {[%cal Rc3d5]} g5 19. Qxe6 fxe6 20. Ng6 Bc6 21. Nxf8 Kxf8 22. Ba3 {[%cal Oe3e4]} Kf7 23. h3 (23. Nb1 {feels hotter.} Bb5 24. f4 c4 25. Nc3) 23... a5 24. Rd2 Rc7 25. Rdc2 Rdc8 26. Bf1 Rb8 {Inhibits Nb5.} 27. Be2 e5 28. Na4 Bxa4 29. bxa4 {[%cal Ra3c5]} Rb6 30. Bb5 {[%cal Ra3c5]} ({Don't blunder} 30. Bxc5 $2 Rbc6 31. Bd1 Rxc5 $19) 30... c4 31. Rd1 Ke6 32. f3 e4 33. f4 gxf4 34. gxf4 Nc5 35. Bb2 {[%cal Of4f5]} Nd3 36. Bc3 {[%cal Of4f5] Black must now prevent f5+! This bishop pair is nice.} (36. f5+ $5 Ke7 37. Bc3 $16) 36... Rg7+ 37. Kh2 Rb8 $1 38. Rg1 (38. Bxa5 $11 Nh5 39. a3) 38... Rxg1 $17 {[%emt 0:00:00]} 39. Kxg1 Ra8 {[%emt 0:00:00]} (39... Rg8+ $1 $17 40. Kh2 Nh5) 40. Rg2 $11 Kf7 {[%emt 0:00:00]} (40... d4 $1 $11 {keeps the balance.} 41. Bxc4+ Kf5 42. Bxd4 Ne1) 41. Kf1 Rc8 {[%emt 0:00:00]} 42. Ke2 {Threatens to win with f5.} (42. Bxa5 d4 43. Ba6 (43. exd4 $2 c3 $19) 43... Rc5 44. exd4 Rxa5 45. Bxc4+ Kf8 $19) 42... Ra8 $2 {[%emt 0:00:00][%mdl 8192]} (42... Nb4 $16) 43. a3 $2 (43. f5 $18) 43... Nc1+ $16 {[%emt 0:00:00]} 44. Kd1 Nb3 {[%emt 0:00:00] [#]} 45. f5 $1 {Hoping for Rg6. &Bianco is more active.} Rc8 {[%emt 0:00:00][%cal Od5d4]} 46. Ke2 $2 (46. Ke1 $16 {keeps the pressure on.}) 46... d4 $1 $17 {[%emt 0:00:00] Black is better.} 47. Bxd4 Nxd4+ {[%emt 0:00:00]} 48. exd4 {[#]} Rc7 {[%emt 0:00:00] Weighted Error Value: White=0.27 (precise) /Black=0.23 (precise)} (48... Nd5 $1 $17 {[%cal Rd5f4]} 49. Rg1 Rc7) 1/2-1/2

[Event "31st MPL National U18 Chess-ch 2022"]
[Site "Pollachi"]
[Date "2022.04.20"]
[Round "6.4"]
[White "Mrithyunjay Mahadevan"]
[Black "Ayush Sharma"]
[Result "0-1"]
[ECO "C84"]
[WhiteElo "2048"]
[BlackElo "2302"]
[Annotator "TA"]
[PlyCount "74"]
[EventDate "2022.04.18"]
[EventCountry "IND"]
[SourceTitle "playchess.com"]
[Source "ChessBase"]
[SourceQuality "1"]
[TimeControl "5400+30"]

{[%evp 14,74,25,22,23,6,6,0,0,0,0,0,6,6,3,6,25,0,0,-40,-41,-46,-29,-23,-8,-13,-13,-10,-12,-10,-9,-9,-9,-8,-14,-66,-63,-62,-64,-67,-63,-101,-101,-101,-100,-99,-107,-113,-40,-100,-79,-86,-85,-87,-83,-78,-79,-78,-78,-90,-91,-232,-213]} 1. e4 {[%emt 0:00:02]} e5 {[%emt 0:00:35]} 2. Nf3 {[%emt 0:00:06]} Nc6 {[%emt 0:00:02]} 3. Bb5 {[%emt 0:00:09]} a6 {[%emt 0:00:03]} 4. Ba4 {[%emt 0:00:08]} Nf6 {[%emt 0:00:04]} 5. O-O {[%emt 0:00:11]} b5 {[%emt 0:00:04]} 6. Bb3 {[%emt 0:00:07]} Be7 {[%emt 0:00:29] 6...Be7 has become a bit dusty these days.} 7. d3 {[%emt 0:00:09]} O-O {[%emt 0:00:08]} 8. a4 {[%emt 0:00:14] [#] axb5 is the strong threat.} Rb8 {[%emt 0:02:34] C84: Closed Ruy Lopez: Unusual White 6th moves.} 9. c3 {[%emt 0:04:12]} d5 {[%emt 0:06:26]} 10. exd5 {[%emt 0:00:36]} Nxd5 {[%emt 0:00:02][%cal Bf6d5,Bd5b4,Bb4d3][%mdl 32] The position is equal.} 11. axb5 {[%emt 0:00:39]} axb5 {[%emt 0:00:09] [#]} ({Resist} 11... Rxb5 12. Na3 $14 (12. c4 Rxb3 13. Qxb3 Ndb4 $11)) 12. Re1 $146 {[%emt 0:00:20]} ({Predecessor:} 12. Qe2 Bf6 13. Nbd2 Nf4 14. Qe4 Bb7 15. Nxe5 Bxe5 16. Nf3 Qxd3 17. Bc2 Qxe4 18. Bxe4 Bd6 {0-1 (18) Machado,F (1792)-Renteria,R (2106) Cali 2017}) 12... Qd6 {[%emt 0:14:44]} 13. d4 {[%emt 0:02:04]} exd4 {[%emt 0:03:06]} 14. Nxd4 {[%emt 0:00:27]} Ndb4 {[%emt 0:23:02]} 15. Be3 {[%emt 0:16:23]} (15. Rxe7 $2 Qxe7 16. Nxc6 Nxc6 $19) 15... Nxd4 {[%emt 0:04:52]} 16. Qxd4 {[%emt 0:00:11]} (16. Bxd4 $5 {[%cal Rc3b4]} Nc6 17. Be3 $11) 16... Nd3 {[%emt 0:07:32]} 17. Qxd6 {[%emt 0:01:10]} Bxd6 {[%emt 0:00:38]} 18. Re2 {[%emt 0:00:16]} Bg4 {[%emt 0:05:12][%cal Bc8g4,Bg4f5,Bf5d3][%mdl 32]} 19. Rd2 {[%emt 0:02:21]} Ne5 {[%emt 0:03:51]} 20. h3 {[%emt 0:01:14]} Bf5 {[%emt 0:00:47]} 21. Na3 {[%emt 0:04:18] Prevents Nc4.} b4 $36 {[%emt 0:03:24][%mdl 2048] Black fights for an advantage.} 22. cxb4 {[%emt 0:00:09]} Bxb4 {[%emt 0:00:01]} 23. Rd5 {[%emt 0:02:09]} Bd6 {[%emt 0:00:02]} 24. Rb5 {[%emt 0:00:46]} ({Better is} 24. Ba4 $11) 24... Bd3 $15 {[%emt 0:03:25]} 25. Rxb8 {[%emt 0:01:43]} Rxb8 {[%emt 0:00:02]} 26. Bd5 {[%emt 0:01:11]} c6 {[%emt 0:00:38]} ({But not} 26... Rxb2 $6 27. f4 Nd7 28. Nc4 Bxc4 29. Ra8+ (29. Bxc4 Kf8 $15) 29... Nf8 30. Bxc4 $11) 27. Bf3 {[%emt 0:01:01]} Rxb2 {[%emt 0:00:52]} 28. Bd1 {[%emt 0:01:19]} h6 {[%emt 0:03:14]} 29. Bd4 {[%emt 0:01:25]} Rb8 {[%emt 0:00:04] 0x0.002ceff46a3edp-1022s more active pieces.} 30. Bc2 {[%emt 0:00:44]} c5 {[%emt 0:02:06]} (30... Bxc2 $17 31. Nxc2 c5 32. Bxe5 Bxe5) 31. Bc3 {[%emt 0:01:47]} ({White should play} 31. Bxe5 $15 Bxe5 32. Re1) 31... c4 {[%emt 0:02:26]} 32. Bxd3 {[%emt 0:00:36]} cxd3 {[%emt 0:00:02]} 33. Bxe5 {[%emt 0:00:41]} Bxe5 $17 {[%emt 0:00:02] KRB-KRN} 34. Rd1 {[%emt 0:00:08]} Rb3 {[%emt 0:01:55]} 35. Nc4 {[%emt 0:00:13]} Bd4 {[%emt 0:00:43]} 36. Nd2 {[%emt 0:00:42]} Rb2 {[%emt 0:00:09]} 37. Ne4 {[%emt 0:00:08]} (37. g4 $17) 37... Re2 {[%emt 0:00:29] Weighted Error Value: White=0.16 (very precise) /Black=0.05 (flawless)} 0-1

[Event "31st MPL National U18 Chess-ch 2022"]
[Site "Pollachi"]
[Date "2022.04.20"]
[Round "6.5"]
[White "Dhruva Thota"]
[Black "Ilamparthi A R"]
[Result "0-1"]
[ECO "B97"]
[WhiteElo "1525"]
[BlackElo "1969"]
[Annotator "TA"]
[PlyCount "101"]
[EventDate "2022.04.18"]
[EventCountry "IND"]
[SourceTitle "playchess.com"]
[Source "ChessBase"]
[SourceQuality "1"]
[TimeControl "5400+30"]

{[%evp 19,101,0,0,-8,-2,-20,25,18,23,0,0,0,8,0,77,54,53,64,70,76,120,51,33,47,43,17,43,28,52,-20,100,100,110,116,100,108,103,87,122,118,128,137,134,125,133,138,154,156,148,126,143,141,158,164,149,150,163,164,161,177,150,109,109,104,100,90,100,100,93,93,96,88,91,68,77,76,64,56,58,62,61,29,68,-767]} 1. e4 {[%emt 0:00:03]} c5 {[%emt 0:00:03]} 2. Nf3 {[%emt 0:00:08]} d6 {[%emt 0:00:04]} 3. d4 {[%emt 0:00:04]} cxd4 {[%emt 0:00:04]} 4. Nxd4 {[%emt 0:00:06]} Nf6 {[%emt 0:00:05]} 5. Nc3 {[%emt 0:00:06]} a6 {[%emt 0:00:04]} 6. Bg5 {[%emt 0:00:04]} e6 {[%emt 0:00:07]} 7. f4 {[%emt 0:00:09]} Qb6 {[%emt 0:00:04]} 8. Nb3 {[%emt 0:04:35]} Nbd7 {[%emt 0:00:13]} 9. Qf3 {[%emt 0:02:00]} Qc7 {[%emt 0:00:09]} 10. O-O-O {[%emt 0:01:59]} b5 {[%emt 0:00:12][%cal Bb7b5,Bb5b4][%mdl 32]} 11. Bd3 {[%emt 0:05:16] 11.Bd3 scores better than 11.a3. B97: Sicilian Najdorf: Poisoned Pawn.} b4 {[%emt 0:06:09]} 12. Ne2 {[%emt 0:06:04] [#]} Rb8 $146 {[%emt 0:06:50]} ({Predecessor:} 12... Bb7 13. Kb1 Be7 14. g4 O-O 15. Bxf6 Nxf6 16. g5 Nd7 17. Rhg1 Nc5 18. Nxc5 dxc5 {½-½ (27) Marczell,P (2561)-Matei,C (2527) ICCF email 2009}) 13. Ned4 {[%emt 0:10:59] White has an edge.} Be7 {[%emt 0:03:37]} 14. Qe2 {[%emt 1:05:57]} Nc5 {[%emt 0:08:48]} 15. Kb1 {[%emt 0:00:00]} Bb7 {[%emt 0:14:14][%cal Rc5e4]} 16. Nxc5 {[%emt 0:00:00]} Qxc5 {[%emt 0:07:30]} (16... dxc5 $11 17. Nf3 O-O) 17. Bxa6 {[%emt 0:00:00] [#] e5 is the strong threat.} O-O $1 {[%emt 0:04:30]} 18. Bxb7 {[%emt 0:00:00]} Rxb7 {[%emt 0:00:02]} 19. Nb3 {[%emt 0:00:00]} Qc7 {[%emt 0:08:14]} 20. e5 {[%emt 0:00:00]} ({White should try} 20. h4 $16) 20... dxe5 $14 {[%emt 0:02:42]} 21. Qxe5 {[%emt 0:00:00]} Qc8 {[%emt 0:02:32]} 22. Rd2 {[%emt 0:00:00]} Qa8 {[%emt 0:04:01]} 23. f5 {[%emt 0:00:00]} (23. Bxf6 $5 Bxf6 24. Qe4 $11) 23... Ra7 {[%emt 0:14:24]} 24. Re1 {[%emt 0:00:00] Against Ne4} (24. Re2 $14) 24... exf5 {[%emt 0:06:15]} (24... h6 $1 $11 25. Bh4 Ng4) 25. Qxf5 $16 {[%emt 0:00:00]} Bd8 {[%emt 0:00:48]} 26. Qf3 $36 {[%emt 0:00:00][%mdl 2048] White has strong initiative.} Rxa2 {[%emt 0:03:19]} 27. Qxa8 {[%emt 0:00:00]} (27. Bf4 {seems wilder.} Bb6 28. Bd6 Rc8 29. Bxb4 Qxf3 30. gxf3 Ra4 31. c3) 27... Rxa8 {[%emt 0:00:02]} 28. Rd4 {[%emt 0:00:00]} Rb8 {[%emt 0:03:08]} 29. Bd2 {[%emt 0:00:00]} Bc7 {[%emt 0:00:29]} 30. Bxb4 {[%emt 0:00:00]} Rfc8 {[%emt 0:00:33]} 31. Bd6 {[%emt 0:00:00]} Bxd6 {[%emt 0:00:51]} 32. Rxd6 {[%emt 0:00:00]} h5 {[%emt 0:00:29]} 33. Nd4 {[%emt 0:00:00]} Rb7 {[%emt 0:01:06]} 34. Nc6 {[%emt 0:00:00] Threatens to win with Ne7+.} Kh7 {[%emt 0:00:18]} 35. Ne5 {[%emt 0:00:00]} Re8 {[%emt 0:01:15]} 36. Nf3 {[%emt 0:00:00]} Ra8 {[%emt 0:00:29]} 37. c4 {[%emt 0:00:00]} Rc8 {[%emt 0:01:39]} 38. Rd4 {[%emt 0:00:06]} Rcb8 {[%emt 0:00:42] [#]} 39. Re2 {[%emt 0:00:19]} Nd7 {[%emt 0:00:07]} 40. Red2 {[%emt 0:02:55]} Nc5 {[%emt 0:00:43]} 41. Rd5 {[%emt 0:00:33][%csl LRc5,LRh5]} Na4 {[%emt 0:00:43] And now ...Nc3+ would win.} 42. Rxh5+ {[%emt 0:01:25]} Kg6 {[%emt 0:00:08]} 43. Rb5 {[%emt 0:01:19]} Rxb5 {[%emt 0:00:08]} 44. cxb5 {[%emt 0:00:02]} Rxb5 {[%emt 0:00:03][%mdl 4096] Endgame KRN-KRN} 45. Ka2 {[%emt 0:00:49]} Nb6 {[%emt 0:00:49]} 46. Rd6+ {[%emt 0:02:17]} f6 {[%emt 0:00:12]} 47. b3 {[%emt 0:00:07] Against Nc4} Nd5 {[%emt 0:00:20]} 48. Nd4 {[%emt 0:01:09]} Ra5+ {[%emt 0:00:21]} 49. Kb2 {[%emt 0:00:07] Hoping for Nc6.} Ne3 $1 {[%emt 0:00:04]} 50. b4 {[%emt 0:01:09]} (50. g3 $5 {[%cal Rb3b4]}) 50... Rg5 {[%emt 0:00:56] aiming for ...Nc4+.} 51. b5 $2 {[%emt 0:01:47][%mdl 8192] Weighted Error Value: White=0.11 (very precise) /Black=0.14 (very precise)} (51. Kc3 $14) 0-1

[Event "31st MPL National U18 Chess-ch 2022"]
[Site "Pollachi"]
[Date "2022.04.20"]
[Round "6.6"]
[White "Apoorv Kamble"]
[Black "Rakshith Srinivasan"]
[Result "0-1"]
[ECO "C06"]
[WhiteElo "1679"]
[BlackElo "1856"]
[Annotator "NA RC COMBH"]
[PlyCount "114"]
[EventDate "2022.04.18"]
[EventCountry "IND"]
[SourceTitle "playchess.com"]
[Source "ChessBase"]
[SourceQuality "1"]
[TimeControl "5400+30"]

1. e4 {[%emt 0:00:02]} e6 {[%emt 0:00:03]} 2. d4 {[%emt 0:00:06]} d5 {[%emt 0:00:03]} 3. Nd2 {[%emt 0:00:06]} Nf6 {[%emt 0:00:04]} 4. e5 {[%emt 0:00:05]} Nfd7 {[%emt 0:00:03]} 5. Bd3 {[%emt 0:00:06]} c5 {[%emt 0:00:04]} 6. c3 {[%emt 0:00:05]} Nc6 {[%emt 0:00:03]} 7. Ne2 {[%emt 0:00:06]} cxd4 {[%emt 0:00:04]} 8. cxd4 {[%emt 0:00:06]} f6 {[%emt 0:00:03]} 9. exf6 {[%emt 0:00:18]} Nxf6 {[%emt 0:00:03]} 10. Nf3 {[%emt 0:00:13]} Bd6 {[%emt 1:35:00]} 11. b3 {[%emt 0:12:20]} O-O {[%emt 0:00:00]} 12. Bb2 {[%emt 0:01:20]} Qc7 {[%emt 0:00:00]} 13. O-O {[%emt 0:00:45]} Ng4 {[%emt 0:00:00]} 14. Ng3 {[%emt 0:02:03]} g6 {[%emt 0:02:00]} 15. Qe2 {[%emt 0:06:15]} Bd7 {[%emt 0:00:00]} 16. h3 {[%emt 0:01:22] [#]} (16. Ng5 $11 e5 17. h3) 16... Nxf2 $1 {[%emt 0:00:00]} 17. Qxf2 {[%emt 0:09:45]} Bxg3 {[%emt 0:00:00]} 18. Qe2 {[%emt 0:00:13]} Rae8 {[%emt 0:00:00]} 19. Ne5 {[%emt 1:04:44]} Nxe5 {[%emt 0:00:00]} 20. dxe5 {[%emt 0:00:00]} Qd8 {[%emt 0:00:00]} 21. Qe3 {[%emt 0:00:00]} Qh4 {[%emt 0:00:00]} 22. Qxa7 {[%emt 0:00:00] [#]} Bc6 $1 {[%emt 0:00:00]} 23. Qd4 {[%emt 0:00:00]} Rf4 {[%emt 0:00:00]} 24. Rxf4 {[%emt 0:00:00]} Bxf4 {[%emt 0:00:00]} 25. Rf1 {[%emt 0:00:00] [#]} Rf8 {[%emt 0:00:00]} (25... g5 $1 $17 26. Qf2 Qxf2+ 27. Kxf2 d4) 26. Rf3 $1 {[%emt 0:00:00]} ({Not} 26. Qc5 $2 d4 27. Bc1 (27. Bxd4 $2 Qg3 $19) 27... Qg3 $19) 26... Rf7 {[%emt 0:00:00]} 27. Bc3 {[%emt 0:00:00]} Qg5 {[%emt 0:00:00]} 28. a4 {[%emt 0:04:30]} Bg3 {[%emt 0:00:00]} 29. Qg4 {[%emt 0:00:00]} Qc1+ {[%emt 0:00:00]} 30. Bf1 {[%emt 0:00:00]} Rxf3 {[%emt 0:00:00]} 31. gxf3 {[%emt 0:00:00]} Qxc3 {[%emt 0:00:00]} 32. Qxg3 $19 {[%emt 0:00:00]} ({Not} 32. Qxe6+ $2 Kg7 33. Kg2 Qe1 34. Qe7+ Kh6 $19) 32... Qxb3 {[%emt 0:00:00]} 33. Qg4 {[%emt 0:00:00]} (33. Qf4 $142) 33... Qe3+ {[%emt 0:00:00]} 34. Kg2 {[%emt 0:00:22]} Qxe5 {[%emt 0:00:00]} 35. Bb5 {[%emt 0:00:36]} Bxb5 {[%emt 0:10:30]} 36. axb5 {[%emt 0:00:01]} d4 {[%emt 0:00:00]} 37. Qh4 {[%emt 0:00:26]} Qd6 {[%emt 0:00:00]} 38. Kf1 {[%emt 0:02:02]} Qd5 {[%emt 0:00:00]} 39. Ke1 {[%emt 0:00:27]} g5 {[%emt 0:00:00]} 40. Qg4 {[%emt 0:01:08]} Kg7 {[%emt 0:00:00]} 41. h4 {[%emt 0:00:13]} h6 {[%emt 0:00:00]} (41... Qe5+ $142 42. Kd1 h6) 42. hxg5 {[%emt 0:00:27]} hxg5 {[%emt 0:00:00]} 43. Kd1 {[%emt 0:00:12]} Qe5 {[%emt 0:00:00]} 44. f4 {[%emt 0:00:25]} Qf5 {[%emt 0:00:00]} 45. Qg2 {[%emt 0:00:01]} Qb1+ {[%emt 0:00:00]} 46. Ke2 {[%emt 0:00:56]} Qc2+ {[%emt 0:00:00]} 47. Kf3 {[%emt 0:00:14]} Qxg2+ {[%emt 0:00:00]} 48. Kxg2 {[%emt 0:00:04]} gxf4 {[%emt 0:00:00]} 49. Kf3 {[%emt 0:00:07]} d3 {[%emt 0:00:00]} 50. Kf2 {[%emt 0:00:08]} e5 {[%emt 0:00:00]} 51. Ke1 {[%emt 0:00:10]} f3 {[%emt 0:00:00]} 52. b6 {[%emt 0:00:14]} e4 {[%emt 0:00:00]} 53. Kd1 {[%emt 0:00:25]} f2 {[%emt 0:00:00]} 54. Kd2 {[%emt 0:00:04]} f1=Q {[%emt 0:09:30]} 55. Ke3 {[%emt 0:00:24]} Qf3+ {[%emt 0:00:00]} 56. Kd4 {[%emt 0:00:10]} d2 {[%emt 0:00:00]} 57. Ke5 {[%emt 0:00:06]} d1=Q {[%emt 0:00:00]} 0-1